fUSD/lending_fUSD_20250522
["ID","MTS","AMOUNT","RATE_DAILY","PERIOD"]
[361918062,1747890639349,-184.9427649,0.00029999,2]
[361918064,1747890639359,-515.5355913,0.00029999,2]
[361918066,1747890639369,-500.0,0.00029999,2]
[361918068,1747890639378,-437.36525,0.00029999,2]
[361918070,1747890639388,-300.0,0.0003,30]
[361918072,1747890639397,-1133.17,0.0003,40]
[361918074,1747890639407,-1009.0,0.0003,8]
[361918076,1747890639416,-1002.0,0.0003,3]
[361918078,1747890639426,-42136.20685926,0.0003,120]
[361918081,1747890639453,-749.47445386,0.0003,120]
[361918084,1747890639467,-6318.26495076,0.0003,120]
[361918085,1747890639476,-1573.11330533,0.0003,30]
[361918088,1747890639487,-446.6196209,0.0003,30]
[361918093,1747890639526,-2886.11746084,0.0003,30]
[361918095,1747890639538,-15480.58783673,0.0003,30]
[361918097,1747890639548,-150.0,0.0003,120]
[361918099,1747890639558,-207.0,0.00030106,11]
[361918101,1747890639568,-458.25,0.00030137,2]
[361918103,1747890639577,-1356.58,0.00030137,2]
[361918105,1747890639587,-805.46,0.00030137,2]
[361918107,1747890639596,-1000.0,0.00030211,2]
[361918109,1747890639606,-1000.0,0.000305,4]
[361918111,1747890639615,-985.13451526,0.00030521,5]
[361918113,1747890639625,-597.29958577,0.00030521,5]
[361918115,1747890639634,-2000.0,0.00030567,3]
[361918117,1747890639644,-629.41,0.00031241,2]
[361918119,1747890639654,-380.03,0.000313,14]
[361918121,1747890639664,-200.0,0.0003138,2]
[361918123,1747890639674,-793.04,0.00031444,120]
[361918125,1747890639684,-5000.0,0.000315,7]
[361918127,1747890639694,-212.21483956,0.000319,25]
[361918129,1747890639704,-311.0,0.00032,120]
[361918131,1747890639716,-8197.21402097,0.00032,14]
[361918133,1747890639726,-2000.0,0.00032,30]
[361918135,1747890639736,-1000.0,0.00032,11]
[361918137,1747890639746,-877.0,0.00032,5]
[361918139,1747890639756,-10000.0,0.00032,30]
[361918141,1747890639766,-200.0,0.0003238,2]
[361918143,1747890639777,-210.0,0.0003255,2]
[361918145,1747890639787,-244.41949938,0.00032594,2]
[361918147,1747890639797,-452.19672138,0.00032876,60]
[361918149,1747890639806,-500.0,0.00032876,2]
[361918151,1747890639816,-500.0,0.00032876,2]
[361918155,1747890639827,-500.0,0.00032876,2]
[361918157,1747890639837,-589.64832358,0.00032876,2]
[361918158,1747890639846,-500.0,0.00032876,60]
[361918160,1747890639857,-264.70874088,0.00032876,60]
[361918163,1747890639868,-420.0,0.00032876,2]
[361918166,1747890639880,-421.43758498,0.00032876,2]
[361918168,1747890639890,-152.3961,0.00032877,7]
[361918170,1747890639900,-543.88575046,0.0003288,120]
[361918172,1747890639910,-11607.0999253,0.0003298,3]
[361918174,1747890639922,-34821.2997758,0.0003299,3]
[361918176,1747890639932,-196.77,0.0003299,2]
[361918179,1747890639941,-13043.0,0.00033,2]
[361918181,1747890639951,-198.0,0.00033,31]
[361918183,1747890639966,-198.0,0.00033,120]
[361918185,1747890639976,-5.06044475,0.00033,30]
[361918199,1747890640124,-262.64005277,0.00033,30]
[361918362,1747890642278,-2868.71543041,0.00033,30]
[361918364,1747890642290,-987.29277197,0.00033,30]
[361918374,1747890642377,-863.96781189,0.00033,30]
[361918377,1747890642390,-967.07159406,0.00033,30]
[361918581,1747890644339,-815.44000002,0.00033,30]
[361918584,1747890644352,-5581.5,0.00033,30]
[361918586,1747890644363,-764.947,0.00033,30]
[361918588,1747890644375,-2421.15000765,0.00033,30]
[361918706,1747890645649,-854.01624939,0.00033,30]
[361918708,1747890645661,-1302.7999999,0.00033,30]
[361918710,1747890645672,-476.46121003,0.00033,30]
[361918715,1747890645710,-1828.93742716,0.00033,30]
[361918717,1747890645722,-4497.52921015,0.00033,6]
[361918719,1747890645733,-1121.145,0.00033,6]
[361918724,1747890645771,-7502.35497776,0.00033,6]
[361918726,1747890645782,-8846.81198358,0.00033,6]
[361918729,1747890645794,-13413.71557422,0.00033,6]
[361918731,1747890645805,-150.0,0.00033,14]
[361918733,1747890645814,-152.0202527,0.0003309,15]
[361918735,1747890645825,-207.0,0.00033095,16]
[361918737,1747890645834,-17439.19300254,0.0003317,2]
[361918739,1747890645846,-1707.54595519,0.0003317,2]
[361918741,1747890645857,-784.34144673,0.0003317,2]
[361918746,1747890645894,-19829.32997012,0.0003317,2]
[361918748,1747890645908,-300.42878841,0.0003317,2]
[361918750,1747890645921,-473.30016859,0.0003317,2]
[361918753,1747890645933,-7178.74776248,0.0003317,2]
[361918757,1747890645945,-841.09078813,0.0003317,2]
[361918760,1747890645958,-735.915,0.0003317,2]
[361918763,1747890645972,-12817.6468411,0.0003317,2]
[361918772,1747890646011,-727.93842349,0.0003317,2]
[361918779,1747890646037,-556.3898016,0.0003317,2]
[361918782,1747890646049,-8293.82230342,0.0003317,2]
[361918785,1747890646060,-5376.445856,0.0003317,2]
[361918792,1747890646090,-151.0,0.00020465,2]
[361918794,1747890646107,-1014.70364382,0.0003317,2]
[361918952,1747890647590,-323.57617519,0.00017849,2]
[361918954,1747890647602,-827.42382481,0.00017849,2]
[361918956,1747890647611,-610.8753439,0.00020849,2]
[361918958,1747890647624,-540.1246561,0.00020849,2]
[361918960,1747890647635,-1151.0,0.00023849,2]
[361918962,1747890647646,-636.22,0.00026849,2]
[361918964,1747890647658,-1000.0,0.000292,2]
[361918966,1747890647669,-1416.70885896,0.0003317,2]
[361918969,1747890647681,-282.78234949,0.0003317,2]
[361918972,1747890647708,-1484.73048015,0.0003317,2]
[361918974,1747890647725,-313.8864514,0.0003317,2]
[361918979,1747890647764,-353.60000004,0.0003317,2]
[361918983,1747890647791,-645.12208,0.0003317,2]
[361918985,1747890647804,-669.0,0.0003317,2]
[361918987,1747890647816,-470.17110742,0.0003317,2]
[361918999,1747890647932,-4744.79967454,0.0003317,2]
[361919002,1747890647944,-1081.27401157,0.0003317,2]
[361919004,1747890647957,-129315.10808427,0.0003317,2]
[361920122,1747891023076,154.63,0.00013699,2]
[361920126,1747891218386,2000.0,0.0002,120]
[361920182,1747891344980,250.0,0.00015,2]
[361920223,1747891360029,150.0,0.00015,2]
[361920237,1747891477510,-1172.0,0.00042463,120]
[361920238,1747891477535,-820.0,0.00042463,30]
[361920239,1747891477558,-1000.0,0.00042463,30]
[361920240,1747891477583,-1000.0,0.00042463,30]
[361920241,1747891477608,-1000.0,0.00042463,60]
[361920242,1747891477633,-1000.0,0.00042463,60]
[361920243,1747891477659,-1000.0,0.00042463,60]
[361920244,1747891477682,-1000.0,0.00042463,60]
[361920245,1747891477707,-1000.0,0.00042463,60]
[361920246,1747891477730,-1000.0,0.00042463,30]
[361920247,1747891477755,-1000.0,0.00042463,30]
[361920248,1747891477778,-1000.0,0.00042463,30]
[361920249,1747891477802,-1000.0,0.00042463,60]
[361920250,1747891477827,-1000.0,0.00042463,30]
[361920251,1747891477852,-1000.0,0.00042463,30]
[361920252,1747891477876,-1000.0,0.00042463,60]
[361920253,1747891477899,-1000.0,0.00042463,30]
[361920254,1747891477923,-1000.0,0.00042463,30]
[361920255,1747891477948,-362.52243138,0.00042463,120]
[361920256,1747891477972,-1000.0,0.00042463,60]
[361920257,1747891477996,-1000.0,0.00042463,30]
[361920258,1747891478021,-1000.0,0.00042463,60]
[361920259,1747891478047,-1000.0,0.00042463,30]
[361920260,1747891478072,-364.33052216,0.00042463,60]
[361920261,1747891478097,-1000.0,0.00042463,30]
[361920262,1747891478122,-188.62199248,0.00042463,120]
[361920263,1747891478145,-518.77631007,0.00042463,30]
[361920264,1747891478170,-387.72064604,0.00042463,30]
[361920265,1747891478198,-971.34666349,0.00042463,91]
[361920266,1747891478222,-731.72729736,0.00042463,30]
[361920267,1747891478246,-889.40225201,0.00042463,30]
[361920268,1747891478270,-1000.0,0.00042463,30]
[361920269,1747891478294,-1060.66223586,0.00042463,30]
[361920270,1747891478318,-544.76221789,0.00042463,30]
[361920271,1747891478342,-759.98705209,0.00042463,120]
[361920272,1747891478367,-758.94673878,0.00042463,120]
[361920273,1747891478391,-750.52523838,0.00042463,30]
[361920274,1747891478414,-500.0,0.00042463,30]
[361920275,1747891478441,-392.17633951,0.00042463,120]
[361920276,1747891478468,-490.84605721,0.00042463,120]
[361920277,1747891478495,-318.9952041,0.00042463,120]
[361920278,1747891478901,-861.48948795,0.00042463,120]
[361920279,1747891478925,-871.17769216,0.00042463,30]
[361920280,1747891478950,-879.50986097,0.00042463,30]
[361920281,1747891478977,-166.67439561,0.00042463,120]
[361920282,1747891479002,-1018.78546617,0.00042463,120]
[361920283,1747891479028,-947.35584,0.00042463,30]
[361920284,1747891479053,-226.01875287,0.00042463,120]
[361920285,1747891479078,-212.03788024,0.00042463,30]
[361920286,1747891479102,-978.70317554,0.00042463,30]
[361920287,1747891479126,-740.62766203,0.00042463,120]
[361920288,1747891479150,-733.10330597,0.00042463,120]
[361920289,1747891479174,-295.2271822,0.00042463,120]
[361920290,1747891479203,-1030.35718602,0.00042463,30]
[361920291,1747891479227,-626.59487056,0.00042463,120]
[361920292,1747891479251,-357.71266707,0.00042463,30]
[361920293,1747891479279,-472.60906309,0.00042463,120]
[361920294,1747891479303,-684.13206139,0.00042463,30]
[361920295,1747891479328,-213.92963527,0.00042463,30]
[361920296,1747891479352,-768.103092,0.00042463,30]
[361920297,1747891479376,-295.21407947,0.00042463,31]
[361920298,1747891479403,-1030.1952794,0.00042463,30]
[361920299,1747891479428,-187.23998438,0.00042463,120]
[361920300,1747891479453,-487.56297017,0.00042463,120]
[361920301,1747891479479,-804.95419803,0.00042463,30]
[361920302,1747891479502,-853.32119193,0.00042463,30]
[361920303,1747891479527,-269.75351586,0.00042463,120]
[361920304,1747891479551,-719.97276734,0.00042463,30]
[361920305,1747891479578,-900.24287954,0.00042463,30]
[361920306,1747891479602,-567.79548088,0.00042463,120]
[361920307,1747891479626,-1011.22441756,0.00042463,120]
[361920308,1747891479651,-458.07479006,0.00042463,30]
[361920309,1747891479676,-525.95069533,0.00042463,120]
[361920310,1747891479700,-980.87595553,0.00042463,120]
[361920311,1747891479724,-687.96787852,0.00042463,30]
[361920312,1747891479749,-219.74410198,0.00042463,120]
[361920313,1747891479775,-493.56415268,0.00042463,30]
[361920314,1747891479800,-556.3312871,0.00042463,30]
[361920315,1747891479827,-973.56262813,0.00042463,120]
[361920316,1747891479851,-207.66208935,0.00042463,30]
[361920317,1747891479877,-648.0112233,0.00042463,60]
[361920318,1747891479902,-1068.93570514,0.00042463,120]
[361920319,1747891479926,-431.75491901,0.00042463,30]
[361920320,1747891479952,-423.03414022,0.00042463,120]
[361920321,1747891479977,-173.19971331,0.00042463,120]
[361920322,1747891480003,-352.97285368,0.00042463,120]
[361920323,1747891480029,-691.54559218,0.00042463,120]
[361920324,1747891480054,-335.84068121,0.00042463,30]
[361920325,1747891480080,-756.0,0.00042463,120]
[361920326,1747891480105,-610.55395688,0.00042463,120]
[361920327,1747891480129,-486.14280139,0.00042463,120]
[361920328,1747891480154,-280.0931962,0.00042463,120]
[361920329,1747891480180,-266.77760185,0.00042463,30]
[361920330,1747891480207,-434.71101594,0.00042463,30]
[361920331,1747891480232,-160.73861251,0.00042463,120]
[361920332,1747891480260,-281.8218824,0.00042463,30]
[361920333,1747891480285,-183.16376177,0.00042463,120]
[361920334,1747891480310,-333.6555241,0.00042463,120]
[361920335,1747891480335,-170.23883238,0.00042463,120]
[361920336,1747891480360,-200.64789814,0.00042463,30]
[361920337,1747891480386,-1082.57000173,0.00042463,30]
[361920338,1747891480409,-444.28614394,0.00042463,60]
[361920339,1747891480433,-263.65328225,0.00042463,30]
[361920340,1747891480459,-227.83669478,0.00042463,120]
[361920341,1747891480485,-580.1246186,0.00042463,120]
[361920342,1747891480512,-683.0,0.00042463,30]
[361920343,1747891480536,-379.58,0.00042463,120]
[361920344,1747891480565,-50000.0,0.00042463,30]
[361920345,1747891480591,-50000.0,0.00042463,31]
[361920346,1747891480620,-50000.0,0.00042463,32]
[361920347,1747891480647,-50000.0,0.00042463,33]
[361920348,1747891480675,-50000.0,0.00042463,34]
[361920349,1747891480702,-50000.0,0.00042463,35]
[361920350,1747891480732,-50000.0,0.00042463,36]
[361920351,1747891480760,-50000.0,0.00042463,37]
[361920352,1747891480788,-50000.0,0.00042463,38]
[361920353,1747891480814,-50000.0,0.00042463,39]
[361920354,1747891480838,-10000.0,0.00042463,30]
[361920355,1747891480862,-10000.0,0.00042463,30]
[361920356,1747891480886,-10000.0,0.00042463,30]
[361920357,1747891480913,-10000.0,0.00042463,30]
[361920358,1747891480942,-6663.19,0.00042463,30]
[361920359,1747891480968,-31607.8701971,0.00042463,30]
[361920360,1747891480994,-296300.0,0.00042463,60]
[361920361,1747891481019,-50000.0,0.00042463,30]
[361920362,1747891481043,-2613.11154208,0.00042463,120]
[361920363,1747891481068,-342.0,0.00042463,30]
[361920364,1747891481092,-1069.66977708,0.00042463,30]
[361920365,1747891481118,-660.34325363,0.00042463,120]
[361920366,1747891481142,-4000.0,0.00042463,30]
[361920367,1747891481167,-171.0,0.00042463,30]
[361920368,1747891481197,-1092.69179729,0.00042463,80]
[361920369,1747891481223,-3586.62140016,0.00042463,30]
[361920370,1747891481249,-123947.6304162,0.00042463,120]
[361920371,1747891481275,-27201.94074944,0.00042463,30]
[361920372,1747891481298,-37580.56707365,0.00042463,30]
[361920373,1747891481324,-771721.2501685,0.00042463,30]
[361920374,1747891481350,-5000.0,0.00042463,37]
[361920375,1747891481376,-285.14349917,0.00042463,120]
[361920376,1747891481401,-400000.0,0.00042463,90]
[361920377,1747891481426,-4002.989999,0.00042463,30]
[361920378,1747891481452,-1150.0,0.00042463,120]
[361920379,1747891481734,-40000.0,0.00042463,90]
[361920380,1747891481760,-6000.0,0.00042463,120]
[361920381,1747891481790,-389867.60238848,0.00042463,60]
[361920382,1747891481815,-170.0,0.00042463,30]
[361920383,1747891481842,-199900.0,0.00042463,120]
[361920384,1747891481867,-10000.0,0.00042463,120]
[361920385,1747891481893,-180.0,0.00042463,120]
[361920386,1747891481920,-415.02687937,0.00042463,120]
[361920387,1747891481945,-50000.0,0.00042463,120]
[361920388,1747891481969,-50000.0,0.00042463,120]
[361920389,1747891481993,-43875.765455,0.00042463,120]
[361920390,1747891482018,-161.24733728,0.00042463,120]
[361920391,1747891482042,-152.1,0.00042463,30]
[361920392,1747891482067,-500.0,0.00042463,120]
[361920393,1747891482093,-400.52154227,0.00042463,120]
[361920394,1747891482117,-151.76091328,0.00042463,60]
[361920395,1747891482144,-10095.16178535,0.00042463,30]
[361920396,1747891482169,-2000.0,0.00042463,120]
[361920397,1747891482197,-470.1022,0.00042463,120]
[361920398,1747891482222,-4000.0,0.00042463,31]
[361920399,1747891482248,-42217.0,0.00042463,120]
[361920400,1747891482276,-21007.92,0.00042463,120]
[361920401,1747891482300,-2496.07355599,0.00042463,60]
[361920402,1747891482324,-152.09138393,0.00042463,120]
[361920403,1747891482349,-807.09065146,0.00042463,120]
[361920404,1747891482373,-1745734.91656222,0.00042463,30]
[361920405,1747891488334,-1329287.35276826,0.00042463,30]
[361920406,1747891488366,-4197.78159391,0.00042463,30]
[361920407,1747891488397,-1529.85522919,0.00042463,30]
[361920408,1747891488428,-211.67128589,0.00042463,30]
[361920409,1747891488459,-41540.0,0.00042463,30]
[361920410,1747891488491,-1097.75201089,0.00042463,120]
[361920411,1747891488524,-1490.0,0.00042463,90]
[361920412,1747891488556,-420.61856637,0.00042463,60]
[361920413,1747891488587,-342.0,0.00042463,120]
[361920414,1747891488619,-5908.70229865,0.00042463,90]
[361920415,1747891488650,-2785.8789014,0.00042463,120]
[361920416,1747891488680,-1620.16281689,0.00042463,120]
[361920417,1747891488711,-24762.82613328,0.00042463,120]
[361920418,1747891488741,-10000.0,0.00042463,30]
[361920419,1747891488771,-10000.0,0.00042463,30]
[361920420,1747891488802,-2257.55,0.00042463,30]
[361920421,1747891488833,-43457.60752575,0.00042463,30]
[361920422,1747891488864,-150.0,0.00042463,120]
[361920423,1747891488895,-636.04762274,0.00042463,120]
[361920424,1747891488926,-4461.22018948,0.00042463,120]
[361920425,1747891488956,-2811.4409467,0.00042463,120]
[361920426,1747891488987,-1076.0,0.00042463,30]
[361920427,1747891489019,-1076.0,0.00042463,30]
[361920428,1747891489048,-1076.0,0.00042463,30]
[361920429,1747891489077,-1076.0,0.00042463,30]
[361920430,1747891489107,-1081.96235912,0.00042463,30]
[361920431,1747891489138,-1000.0,0.00042463,30]
[361920432,1747891489169,-3886.38830758,0.00042463,120]
[361920433,1747891489201,-420.0,0.00042463,60]
[361920434,1747891489231,-420.0,0.00042463,60]
[361920435,1747891489263,-420.0,0.00042463,60]
[361920436,1747891489296,-420.0,0.00042463,60]
[361920437,1747891489327,-420.0,0.00042463,60]
[361920438,1747891489356,-420.0,0.00042463,60]
[361920439,1747891489386,-420.0,0.00042463,60]
[361920440,1747891489417,-420.0,0.00042463,60]
[361920441,1747891489446,-326.38398406,0.00042463,60]
[361920442,1747891489476,-420.0,0.00042463,60]
[361920443,1747891489507,-420.0,0.00042463,60]
[361920444,1747891489539,-420.0,0.00042463,60]
[361920445,1747891489567,-420.0,0.00042463,60]
[361920446,1747891489596,-420.0,0.00042463,60]
[361920447,1747891489626,-420.0,0.00042463,60]
[361920448,1747891489655,-420.0,0.00042463,60]
[361920449,1747891489684,-420.0,0.00042463,60]
[361920450,1747891489716,-420.0,0.00042463,60]
[361920451,1747891489745,-420.0,0.00042463,60]
[361920452,1747891489775,-420.0,0.00042463,60]
[361920453,1747891489805,-420.0,0.00042463,60]
[361920454,1747891489834,-294.61444223,0.00042463,60]
[361920455,1747891489863,-420.0,0.00042463,60]
[361920456,1747891489892,-420.0,0.00042463,60]
[361920457,1747891489921,-420.0,0.00042463,60]
[361920458,1747891489949,-420.0,0.00042463,60]
[361920459,1747891489978,-556.1881876,0.00042463,60]
[361920460,1747891490006,-420.0,0.00042463,60]
[361920461,1747891490037,-420.0,0.00042463,60]
[361920462,1747891490068,-420.0,0.00042463,60]
[361920463,1747891490099,-420.0,0.00042463,60]
[361920464,1747891490129,-366.45371121,0.00042463,60]
[361920465,1747891490160,-420.0,0.00042463,60]
[361920466,1747891490192,-420.0,0.00042463,60]
[361920467,1747891490225,-420.0,0.00042463,60]
[361920468,1747891490257,-420.0,0.00042463,60]
[361920469,1747891490289,-420.0,0.00042463,60]
[361920470,1747891490319,-420.0,0.00042463,60]
[361920471,1747891490350,-420.0,0.00042463,60]
[361920472,1747891490379,-420.0,0.00042463,60]
[361920473,1747891490409,-420.0,0.00042463,60]
[361920474,1747891490439,-280.0,0.00042463,60]
[361920475,1747891490469,-420.0,0.00042463,60]
[361920476,1747891490499,-420.0,0.00042463,60]
[361920477,1747891490529,-360.0,0.00042463,60]
[361920478,1747891490558,-177.03670596,0.00042463,60]
[361920479,1747891490588,-420.0,0.00042463,60]
[361920480,1747891490617,-420.0,0.00042463,60]
[361920481,1747891490647,-239.78345832,0.00042463,60]
[361920482,1747891490677,-521.84,0.00042463,60]
[361920483,1747891490706,-521.84,0.00042463,60]
[361920484,1747891490735,-521.84,0.00042463,60]
[361920485,1747891490764,-521.84,0.00042463,60]
[361920486,1747891490794,-521.84,0.00042463,60]
[361920487,1747891490825,-521.84,0.00042463,60]
[361920488,1747891490854,-521.84,0.00042463,60]
[361920489,1747891490884,-521.84,0.00042463,60]
[361920490,1747891490914,-521.84,0.00042463,60]
[361920491,1747891490943,-521.84,0.00042463,60]
[361920492,1747891490973,-521.84,0.00042463,60]
[361920493,1747891491003,-521.84,0.00042463,60]
[361920494,1747891491033,-521.84,0.00042463,60]
[361920495,1747891491064,-521.84,0.00042463,60]
[361920496,1747891491094,-521.84,0.00042463,60]
[361920497,1747891491123,-521.84,0.00042463,60]
[361920498,1747891491153,-521.84,0.00042463,60]
[361920499,1747891491185,-521.84,0.00042463,60]
[361920500,1747891492009,-521.84,0.00042463,60]
[361920501,1747891492036,-521.84,0.00042463,60]
[361920502,1747891492061,-521.84,0.00042463,60]
[361920503,1747891492086,-521.84,0.00042463,60]
[361920504,1747891492111,-521.84,0.00042463,60]
[361920505,1747891492135,-521.989864,0.00042463,60]
[361920506,1747891492160,-420.0,0.00042463,60]
[361920507,1747891492189,-420.0,0.00042463,60]
[361920508,1747891492214,-420.0,0.00042463,60]
[361920509,1747891492241,-420.0,0.00042463,60]
[361920510,1747891492266,-420.0,0.00042463,60]
[361920511,1747891492290,-420.0,0.00042463,60]
[361920512,1747891492315,-420.0,0.00042463,60]
[361920513,1747891492340,-420.0,0.00042463,60]
[361920514,1747891492367,-420.0,0.00042463,60]
[361920515,1747891492392,-420.0,0.00042463,60]
[361920516,1747891492418,-420.0,0.00042463,60]
[361920517,1747891492444,-420.0,0.00042463,60]
[361920518,1747891492471,-420.0,0.00042463,60]
[361920519,1747891492495,-420.0,0.00042463,60]
[361920520,1747891492520,-420.0,0.00042463,60]
[361920521,1747891492544,-420.0,0.00042463,60]
[361920522,1747891492569,-420.0,0.00042463,60]
[361920523,1747891492594,-420.0,0.00042463,60]
[361920524,1747891492619,-420.0,0.00042463,60]
[361920525,1747891492644,-420.0,0.00042463,60]
[361920526,1747891492669,-420.0,0.00042463,60]
[361920527,1747891492693,-479.58887919,0.00042463,60]
[361920528,1747891492718,-420.0,0.00042463,60]
[361920529,1747891492742,-420.0,0.00042463,60]
[361920530,1747891492766,-420.0,0.00042463,60]
[361920531,1747891492791,-342.0389164,0.00042463,60]
[361920532,1747891492816,-420.0,0.00042463,60]
[361920533,1747891492841,-420.0,0.00042463,60]
[361920534,1747891492866,-420.0,0.00042463,60]
[361920535,1747891492891,-420.0,0.00042463,60]
[361920536,1747891492916,-420.0,0.00042463,60]
[361920537,1747891492941,-420.0,0.00042463,60]
[361920538,1747891492965,-420.0,0.00042463,60]
[361920539,1747891492990,-420.0,0.00042463,60]
[361920540,1747891493015,-420.0,0.00042463,60]
[361920541,1747891493041,-420.0,0.00042463,60]
[361920542,1747891493066,-420.0,0.00042463,60]
[361920543,1747891493091,-420.0,0.00042463,60]
[361920544,1747891493114,-420.0,0.00042463,60]
[361920545,1747891493139,-420.0,0.00042463,60]
[361920546,1747891493163,-420.0,0.00042463,60]
[361920547,1747891493191,-420.0,0.00042463,60]
[361920548,1747891493222,-420.0,0.00042463,60]
[361920549,1747891493250,-420.0,0.00042463,60]
[361920550,1747891493277,-420.0,0.00042463,60]
[361920551,1747891493303,-420.0,0.00042463,60]
[361920552,1747891493330,-420.0,0.00042463,60]
[361920553,1747891493355,-420.0,0.00042463,60]
[361920554,1747891493382,-420.0,0.00042463,60]
[361920555,1747891493408,-420.0,0.00042463,60]
[361920556,1747891493434,-420.0,0.00042463,60]
[361920557,1747891493460,-420.0,0.00042463,60]
[361920558,1747891493486,-420.0,0.00042463,60]
[361920559,1747891493511,-420.0,0.00042463,60]
[361920560,1747891493537,-420.0,0.00042463,60]
[361920561,1747891493564,-420.0,0.00042463,60]
[361920562,1747891493589,-420.0,0.00042463,60]
[361920563,1747891493616,-420.0,0.00042463,60]
[361920564,1747891493641,-420.0,0.00042463,60]
[361920565,1747891493666,-420.0,0.00042463,60]
[361920566,1747891493690,-420.0,0.00042463,60]
[361920567,1747891493713,-420.0,0.00042463,60]
[361920568,1747891493738,-420.0,0.00042463,60]
[361920569,1747891493766,-420.0,0.00042463,60]
[361920570,1747891493800,-420.0,0.00042463,60]
[361920571,1747891493826,-420.0,0.00042463,60]
[361920572,1747891493851,-420.0,0.00042463,60]
[361920573,1747891493877,-420.0,0.00042463,60]
[361920574,1747891493903,-420.0,0.00042463,60]
[361920575,1747891493928,-420.0,0.00042463,60]
[361920576,1747891493952,-385.744287,0.00042463,60]
[361920577,1747891493977,-238.07200473,0.00042463,60]
[361920578,1747891494001,-543.59608116,0.00042463,60]
[361920579,1747891494029,-420.0,0.00042463,60]
[361920580,1747891494053,-559.68590715,0.00042463,60]
[361920581,1747891494078,-560.0,0.00042463,60]
[361920582,1747891494102,-420.0,0.00042463,60]
[361920583,1747891494127,-420.0,0.00042463,60]
[361920584,1747891494151,-420.0,0.00042463,60]
[361920585,1747891494176,-420.0,0.00042463,60]
[361920586,1747891494203,-420.0,0.00042463,60]
[361920587,1747891494228,-515.33204227,0.00042463,60]
[361920588,1747891494254,-1130.18,0.00042463,60]
[361920589,1747891494305,-1130.18,0.00042463,60]
[361920590,1747891494331,-1130.18,0.00042463,60]
[361920591,1747891494359,-1130.18,0.00042463,60]
[361920592,1747891494386,-1130.18,0.00042463,60]
[361920593,1747891494412,-420.0,0.00042463,60]
[361920594,1747891494439,-420.0,0.00042463,60]
[361920595,1747891494464,-1130.18,0.00042463,60]
[361920596,1747891494688,-420.0,0.00042463,60]
[361920597,1747891494716,-420.0,0.00042463,60]
[361920598,1747891494741,-1130.18,0.00042463,60]
[361920599,1747891494766,-420.0,0.00042463,60]
[361920600,1747891494792,-420.0,0.00042463,60]
[361920601,1747891494817,-1130.18,0.00042463,60]
[361920602,1747891494842,-420.0,0.00042463,60]
[361920603,1747891494867,-530.80338334,0.00042463,60]
[361920604,1747891494893,-1130.18,0.00042463,60]
[361920605,1747891494917,-420.0,0.00042463,60]
[361920606,1747891494942,-1130.18,0.00042463,60]
[361920607,1747891494966,-420.0,0.00042463,60]
[361920608,1747891494990,-1130.18,0.00042463,60]
[361920609,1747891495015,-420.0,0.00042463,60]
[361920610,1747891495040,-1130.18,0.00042463,60]
[361920611,1747891495064,-199.34272986,0.00042463,60]
[361920612,1747891495088,-1130.18,0.00042463,60]
[361920613,1747891495112,-1130.18,0.00042463,60]
[361920614,1747891495136,-1130.18,0.00042463,60]
[361920615,1747891495161,-1130.18,0.00042463,60]
[361920616,1747891495188,-1130.18,0.00042463,60]
[361920617,1747891495215,-1130.18,0.00042463,60]
[361920618,1747891495240,-1130.18,0.00042463,60]
[361920619,1747891495266,-1130.18,0.00042463,60]